fUSD/lending_fUSD_20250607
["ID","MTS","AMOUNT","RATE_DAILY","PERIOD"]
[364864439,1749282659747,-2212.47,0.00027397,5]
[364864440,1749282659758,-2212.47,0.00027397,5]
[364864441,1749282659768,-2212.47,0.00027397,5]
[364864442,1749282659778,-2212.47,0.00027397,5]
[364864443,1749282659789,-2212.47,0.00027397,5]
[364864444,1749282659800,-2212.47,0.00027397,5]
[364864445,1749282659810,-2212.47,0.00027397,5]
[364864446,1749282659821,-426.52362575,0.00027397,5]
[364864447,1749282659831,-480.0,0.00027397,5]
[364864448,1749282659840,-2212.47,0.00027397,5]
[364864449,1749282659851,-2212.47,0.00027397,5]
[364864450,1749282659861,-2212.47,0.00027397,5]
[364864451,1749282659875,-486.76359595,0.00027397,5]
[364864452,1749282659884,-2212.47,0.00027397,5]
[364864453,1749282659895,-2212.47,0.00027397,5]
[364864454,1749282659906,-498.96611695,0.00027397,5]
[364864455,1749282659916,-1788.9,0.00027397,5]
[364864456,1749282659926,-2212.47,0.00027397,5]
[364864457,1749282659939,-814.18,0.00027397,5]
[364864458,1749282659949,-2212.47,0.00027397,5]
[364864459,1749282659959,-480.0,0.00027397,5]
[364864460,1749282659970,-2212.47,0.00027397,5]
[364864461,1749282659980,-11876.34,0.00027397,5]
[364864462,1749282659991,-471.42011093,0.00027397,5]
[364864463,1749282660002,-2212.47,0.00027397,5]
[364864464,1749282660012,-464.75531448,0.00027397,5]
[364864465,1749282660022,-2212.6306924,0.00027397,5]
[364864466,1749282660032,-486.81693847,0.00027397,5]
[364864467,1749282660042,-959.52,0.00027397,5]
[364864468,1749282660052,-2522.98,0.00027397,5]
[364864469,1749282660063,-480.0,0.00027397,5]
[364864470,1749282660073,-420.0,0.00027397,5]
[364864471,1749282660084,-1093.12,0.00027397,5]
[364864472,1749282660094,-480.0,0.00027397,5]
[364864473,1749282660104,-500.0,0.00027397,2]
[364864474,1749282660114,-480.0,0.00027397,5]
[364864475,1749282660125,-1813.84,0.00027397,5]
[364864476,1749282660134,-466.89576298,0.00027397,5]
[364864477,1749282660145,-480.61834349,0.00027397,5]
[364864478,1749282660155,-480.0,0.00027397,5]
[364864479,1749282660165,-481.61,0.00027397,5]
[364864480,1749282660176,-480.0,0.00027397,5]
[364864481,1749282660187,-480.0,0.00027397,5]
[364864482,1749282660198,-6018.65,0.00027397,5]
[364864483,1749282660208,-480.0,0.00027397,5]
[364864484,1749282660219,-480.0,0.00027397,5]
[364864485,1749282660229,-1581.96,0.00027397,5]
[364864486,1749282660239,-480.0,0.00027397,5]
[364864487,1749282660250,-855.47,0.00027397,5]
[364864488,1749282660260,-480.0,0.00027397,5]
[364864489,1749282660271,-480.0,0.00027397,5]
[364864490,1749282660281,-480.0,0.00027397,5]
[364864491,1749282660291,-480.0,0.00027397,5]
[364864492,1749282660302,-499.74979819,0.00027397,5]
[364864493,1749282660312,-5571.7,0.00027397,5]
[364864494,1749282660322,-1003.3,0.00027397,5]
[364864495,1749282660333,-1086.55,0.00027397,5]
[364864496,1749282660343,-1345.91,0.00027397,5]
[364864497,1749282660353,-480.0,0.00027397,5]
[364864498,1749282660365,-1327.04,0.00027397,5]
[364864499,1749282660375,-1675.33,0.00027397,5]
[364864500,1749282660386,-2008.91,0.00027397,5]
[364864501,1749282660396,-480.0,0.00027397,5]
[364864502,1749282660406,-477.36890142,0.00027397,5]
[364864503,1749282660416,-480.0,0.00027397,5]
[364864504,1749282660427,-480.0,0.00027397,5]
[364864505,1749282660437,-734.71,0.00027397,5]
[364864506,1749282660448,-1529.93,0.00027397,5]
[364864507,1749282660457,-482.35146621,0.00027397,5]
[364864508,1749282660467,-480.0,0.00027397,5]
[364864509,1749282660477,-480.0,0.00027397,5]
[364864510,1749282660488,-596.66,0.00027397,5]
[364864511,1749282660498,-480.0,0.00027397,5]
[364864512,1749282660509,-480.0,0.00027397,5]
[364864513,1749282660518,-480.0,0.00027397,5]
[364864514,1749282660528,-895.060117,0.00027397,7]
[364864515,1749282660538,-895.060117,0.00027397,7]
[364864516,1749282660547,-480.0,0.00027397,5]
[364864517,1749282660557,-1453.1,0.00027397,5]
[364864518,1749282660568,-895.060117,0.00027397,7]
[364864519,1749282660578,-895.060117,0.00027397,7]
[364864520,1749282660588,-3264.83,0.00027397,5]
[364864521,1749282660598,-3865.55,0.00027397,5]
[364864522,1749282660608,-967.54,0.00027397,5]
[364864523,1749282660619,-480.0,0.00027397,5]
[364864524,1749282660630,-895.060117,0.00027397,7]
[364864525,1749282660641,-895.060117,0.00027397,7]
[364864526,1749282660651,-895.060117,0.00027397,7]
[364864527,1749282660661,-500.0,0.00027397,5]
[364864528,1749282660671,-895.060117,0.00027397,7]
[364864529,1749282660681,-500.0,0.00027397,5]
[364864530,1749282660691,-500.0,0.00027397,5]
[364864531,1749282660701,-500.0,0.00027397,5]
[364864532,1749282660711,-500.0,0.00027397,5]
[364864533,1749282660721,-504.98593338,0.00027397,5]
[364864534,1749282660731,-480.0,0.00027397,5]
[364864535,1749282660741,-484.40155999,0.00027397,5]
[364864536,1749282660750,-480.0,0.00027397,5]
[364864537,1749282660761,-871.56,0.00027397,5]
[364864538,1749282660771,-1458.57,0.00027397,5]
[364864539,1749282660780,-749.45,0.00027397,5]
[364864540,1749282660790,-480.0,0.00027397,5]
[364864541,1749282660800,-480.0,0.00027397,5]
[364864542,1749282660809,-420.42381241,0.00027397,5]
[364864543,1749282660819,-480.0,0.00027397,5]
[364864544,1749282660829,-489.97644543,0.00027397,5]
[364864545,1749282660839,-915.39,0.00027397,5]
[364864546,1749282660849,-480.0,0.00027397,5]
[364864547,1749282660859,-4023.49,0.00027397,5]
[364864548,1749282660872,-435.19553468,0.00027397,5]
[364864549,1749282660882,-1170.49,0.00027397,5]
[364864550,1749282660892,-480.0,0.00027397,5]
[364864551,1749282660901,-480.0,0.00027397,5]
[364864552,1749282660913,-480.0,0.00027397,5]
[364864553,1749282660923,-742.56,0.00027397,5]
[364864554,1749282660933,-1017.00083755,0.00027397,5]
[364864555,1749282660944,-478.32592417,0.00027397,5]
[364864556,1749282660954,-1731.59,0.00027397,5]
[364864557,1749282660964,-594.14,0.00027397,5]
[364864558,1749282660973,-500.0,0.00027397,5]
[364864559,1749282660984,-500.0,0.00027397,5]
[364864560,1749282660995,-480.0,0.00027397,5]
[364864561,1749282661005,-501.57789469,0.00027397,5]
[364864562,1749282661016,-501.16294386,0.00027397,5]
[364864563,1749282661025,-500.01491436,0.00027397,5]
[364864564,1749282661036,-480.0,0.00027397,5]
[364864565,1749282661045,-488.61625459,0.00027397,5]
[364864566,1749282661055,-480.0,0.00027397,5]
[364864567,1749282661066,-500.0,0.00027397,2]
[364864568,1749282661076,-151.0,0.00027397,7]
[364864569,1749282661086,-500.0,0.00027397,2]
[364864570,1749282661096,-480.0,0.00027397,5]
[364864571,1749282661106,-500.0,0.00027397,2]
[364864572,1749282661116,-151.0,0.00027397,7]
[364864573,1749282661127,-500.0,0.00027397,2]
[364864574,1749282661137,-500.0,0.00027397,2]
[364864575,1749282661147,-151.0,0.00027397,7]
[364864576,1749282661158,-500.0,0.00027397,2]
[364864577,1749282661168,-1143.16,0.00027397,5]
[364864578,1749282661178,-500.0,0.00027397,2]
[364864579,1749282661188,-500.0,0.00027397,2]
[364864580,1749282661200,-151.0,0.00027397,7]
[364864581,1749282661210,-500.0,0.00027397,2]
[364864582,1749282661220,-500.0,0.00027397,2]
[364864583,1749282661230,-500.0,0.00027397,2]
[364864584,1749282661241,-502.64900214,0.00027397,2]
[364864585,1749282661251,-480.0,0.00027397,5]
[364864586,1749282661261,-248.24710004,0.00027397,5]
[364864587,1749282661271,-2029.78,0.00027397,5]
[364864588,1749282661281,-275.347971,0.00027397,7]
[364864589,1749282661291,-2000.65,0.00027397,5]
[364864590,1749282661300,-485.39,0.00027397,5]
[364864591,1749282661310,-683.94,0.00027397,5]
[364864592,1749282661320,-480.0,0.00027397,5]
[364864593,1749282661329,-1386.31,0.00027397,5]
[364864594,1749282661339,-747.9,0.00027397,5]
[364864595,1749282661348,-1122.69,0.00027397,5]
[364864596,1749282661357,-480.0,0.00027397,5]
[364864597,1749282661367,-480.0,0.00027397,5]
[364864598,1749282661377,-480.0,0.00027397,5]
[364864599,1749282661386,-487.93759293,0.00027397,5]
[364864600,1749282661396,-788.44,0.00027397,5]
[364864601,1749282661405,-480.0,0.00027397,5]
[364864602,1749282661415,-499.96805543,0.00027397,5]
[364864603,1749282661424,-494.08,0.00027397,5]
[364864604,1749282661434,-518.65,0.00027397,5]
[364864605,1749282661443,-492.12,0.00027397,5]
[364864606,1749282661453,-491.5708486,0.00027397,5]
[364864607,1749282661463,-1941.16,0.00027397,5]
[364864608,1749282661472,-493.61106545,0.00027397,5]
[364864609,1749282661483,-480.0,0.00027397,5]
[364864610,1749282661492,-480.0,0.00027397,5]
[364864611,1749282661502,-480.0,0.00027397,5]
[364864612,1749282661511,-480.0,0.00027397,5]
[364864613,1749282661521,-480.0,0.00027397,5]
[364864614,1749282661530,-482.93172348,0.00027397,5]
[364864615,1749282661540,-428.43001528,0.00027397,5]
[364864616,1749282661550,-183.5396126,0.00027397,5]
[364864617,1749282661559,-499.42,0.00027397,5]
[364864618,1749282661569,-480.0,0.00027397,5]
[364864619,1749282661580,-2403.78,0.00027397,5]
[364864620,1749282661590,-757.09,0.00027397,5]
[364864621,1749282661600,-480.0,0.00027397,5]
[364864622,1749282661610,-957.28,0.00027397,5]
[364864623,1749282661621,-496.88810002,0.00027397,5]
[364864624,1749282661633,-480.0,0.00027397,5]
[364864625,1749282661642,-483.00812327,0.00027397,5]
[364864626,1749282661652,-697.95,0.00027397,5]
[364864627,1749282661662,-543.19172869,0.00027397,5]
[364864628,1749282661671,-575.71,0.00027397,5]
[364864629,1749282661682,-480.0,0.00027397,5]
[364864630,1749282661692,-354.436695,0.00027397,7]
[364864631,1749282661702,-354.436695,0.00027397,7]
[364864632,1749282661713,-748.21,0.00027397,5]
[364864633,1749282661723,-354.436695,0.00027397,7]
[364864634,1749282661828,-491.67404145,0.00027397,5]
[364864635,1749282661838,-354.436695,0.00027397,7]
[364864636,1749282661848,-480.0,0.00027397,5]
[364864637,1749282661858,-354.436695,0.00027397,7]
[364864638,1749282661875,-607.22,0.00027397,5]
[364864639,1749282661886,-500.0,0.00027397,5]
[364864640,1749282661896,-480.0,0.00027397,5]
[364864641,1749282661906,-500.0,0.00027397,5]
[364864642,1749282661916,-500.0,0.00027397,5]
[364864643,1749282661926,-500.0,0.00027397,5]
[364864644,1749282661935,-5005.59,0.00027397,5]
[364864645,1749282661945,-180.27429648,0.00027397,5]
[364864646,1749282661954,-354.436695,0.00027397,7]
[364864647,1749282661964,-354.436695,0.00027397,7]
[364864648,1749282661974,-10865.99,0.00027397,5]
[364864649,1749282661984,-354.436695,0.00027397,7]
[364864650,1749282661994,-4322.98,0.00027397,5]
[364864651,1749282662003,-354.436695,0.00027397,7]
[364864652,1749282662013,-354.436695,0.00027397,7]
[364864653,1749282662023,-1739.86,0.00027397,5]
[364864654,1749282662033,-630.74,0.00027397,5]
[364864655,1749282662043,-480.0,0.00027397,5]
[364864656,1749282662052,-480.0,0.00027397,5]
[364864657,1749282662062,-480.0,0.00027397,5]
[364864658,1749282662072,-480.0,0.00027397,5]
[364864659,1749282662081,-480.0,0.00027397,5]
[364864660,1749282662091,-480.0,0.00027397,5]
[364864661,1749282662102,-1078.23,0.00027397,5]
[364864662,1749282662111,-480.0,0.00027397,2]
[364864663,1749282662120,-3155.81,0.00027397,5]
[364864664,1749282662130,-480.0,0.00027397,5]
[364864665,1749282662140,-1387.38,0.00027397,5]
[364864666,1749282662149,-3155.81,0.00027397,5]
[364864667,1749282662158,-3155.81,0.00027397,5]
[364864668,1749282662168,-3155.81,0.00027397,5]
[364864669,1749282662178,-3155.81,0.00027397,5]
[364864670,1749282662187,-3155.81,0.00027397,5]
[364864671,1749282662197,-3155.81,0.00027397,5]
[364864672,1749282662206,-3155.81,0.00027397,5]
[364864673,1749282662216,-480.0,0.00027397,5]
[364864674,1749282662226,-3155.81,0.00027397,5]
[364864675,1749282662236,-689.06,0.00027397,5]
[364864676,1749282662246,-3155.81,0.00027397,5]
[364864677,1749282662256,-3155.81,0.00027397,5]
[364864678,1749282662265,-3155.81,0.00027397,5]
[364864679,1749282662274,-492.93793836,0.00027397,5]
[364864680,1749282662284,-3155.81,0.00027397,5]
[364864681,1749282662294,-3155.81,0.00027397,5]
[364864682,1749282662303,-3155.81,0.00027397,5]
[364864683,1749282662314,-3155.81,0.00027397,5]
[364864684,1749282662325,-480.0,0.00027397,5]
[364864685,1749282662335,-3155.81,0.00027397,5]
[364864686,1749282662345,-3155.81,0.00027397,5]
[364864687,1749282662355,-3155.81,0.00027397,5]
[364864688,1749282662365,-3155.81,0.00027397,5]
[364864689,1749282662374,-16410.82,0.00027397,5]
[364864690,1749282662385,-3155.81,0.00027397,5]
[364864691,1749282662394,-3155.81,0.00027397,5]
[364864692,1749282662404,-3155.81,0.00027397,5]
[364864693,1749282662414,-1650.11,0.00027397,5]
[364864694,1749282662425,-3155.89068646,0.00027397,5]
[364864695,1749282662435,-590.0,0.00027397,5]
[364864696,1749282662446,-7442.43,0.00027397,5]
[364864697,1749282662456,-3593.96,0.00027397,5]
[364864698,1749282662466,-495.27479184,0.00027397,5]
[364864699,1749282662476,-480.0,0.00027397,5]
[364864700,1749282662486,-480.6584502,0.00027397,5]
[364864701,1749282662495,-551.18949792,0.00027397,5]
[364864702,1749282662505,-480.0,0.00027397,5]
[364864703,1749282662514,-749.65,0.00027397,5]
[364864704,1749282662524,-2124.13,0.00027397,5]
[364864705,1749282662534,-816.17,0.00027397,5]
[364864706,1749282662544,-665.9,0.00027397,5]
[364864707,1749282662555,-489.68581883,0.00027397,5]
[364864708,1749282662565,-1213.994422,0.00027397,7]
[364864709,1749282662576,-1213.994422,0.00027397,7]
[364864710,1749282662586,-509.4296095,0.00027397,5]
[364864711,1749282662596,-2227.22,0.00027397,5]
[364864712,1749282662607,-1213.994422,0.00027397,7]
[364864713,1749282662617,-1213.994422,0.00027397,7]
[364864714,1749282662627,-486.13879497,0.00027397,5]
[364864715,1749282662637,-1352.48,0.00027397,5]
[364864716,1749282662646,-480.0,0.00027397,5]
[364864717,1749282662655,-507.82,0.00027397,5]
[364864718,1749282662665,-1213.994422,0.00027397,7]
[364864719,1749282662676,-480.0,0.00027397,5]
[364864720,1749282662686,-1213.994422,0.00027397,7]
[364864721,1749282662695,-1213.994422,0.00027397,7]
[364864722,1749282662705,-1213.994422,0.00027397,7]
[364864723,1749282662714,-1744.26,0.00027397,5]
[364864724,1749282662724,-480.0,0.00027397,5]
[364864725,1749282662734,-480.0,0.00027397,5]
[364864726,1749282662744,-170.02156084,0.00027397,5]
[364864727,1749282662754,-3612.7,0.00027397,5]
[364864728,1749282662764,-150.0,0.00027397,5]
[364864729,1749282662774,-505.28717574,0.00027397,5]
[364864730,1749282662783,-480.0,0.00027397,5]
[364864731,1749282662793,-480.0,0.00027397,5]
[364864732,1749282662803,-480.0,0.00027397,5]
[364864733,1749282662812,-480.0,0.00027397,5]
[364864734,1749282662822,-480.0,0.00027397,5]
[364864735,1749282662831,-493.54052618,0.00027397,5]
[364864736,1749282662840,-480.0,0.00027397,5]
[364864737,1749282662850,-480.0,0.00027397,5]
[364864738,1749282662859,-1656.96,0.00027397,5]
[364864739,1749282662872,-480.0,0.00027397,5]
[364864740,1749282662881,-1260.39,0.00027397,5]
[364864741,1749282662891,-480.0,0.00027397,5]
[364864742,1749282662900,-915.34,0.00027397,5]
[364864743,1749282662911,-480.0,0.00027397,5]
[364864744,1749282662920,-980.64,0.00027397,5]
[364864745,1749282662929,-3111.73,0.00027397,5]
[364864746,1749282662939,-642.18,0.00027397,5]
[364864747,1749282662948,-202.192633,0.00027397,7]
[364864748,1749282662957,-202.192633,0.00027397,7]
[364864749,1749282662967,-480.0,0.00027397,5]
[364864750,1749282662977,-959.96,0.00027397,5]
[364864751,1749282662987,-480.0,0.00027397,5]
[364864752,1749282662997,-700.0,0.00027397,2]
[364864753,1749282663006,-5091.73,0.00027397,2]
[364864754,1749282663015,-150.0,0.00027397,2]
[364864755,1749282663025,-300.0,0.00027397,2]
[364864756,1749282663036,-124151.16,0.00027397,2]
[364864757,1749282663047,-159.83716111,0.00027397,5]
[364864758,1749282663057,-288.65538369,0.00027397,5]
[364864759,1749282663066,-526.0,0.000274,2]
[364864760,1749282663076,-1000.0,0.000274,2]
[364864761,1749282663087,-150.0,0.00027424,2]
[364864762,1749282663096,-150.0,0.00027424,2]
[364864763,1749282663106,-500.0,0.00027424,2]
[364864764,1749282663115,-668.90846372,0.00027425,30]
[364864765,1749282663125,-276514.2020118,0.00027443,2]
[364864766,1749282663135,-200.0,0.00027452,2]
[364864767,1749282663146,-200.0,0.00027452,2]
[364864768,1749282663156,-500.0,0.00027452,2]
[364864769,1749282663166,-3917.9846414,0.00027462,2]
[364864770,1749282663176,-2072.8810809,0.00027462,2]
[364864771,1749282663185,-500.0,0.0002747,2]
[364864772,1749282663195,-500.0,0.00027479,2]
[364864773,1749282663205,-150.43130117,0.00027479,30]
[364864774,1749282663215,-43123.9875637,0.00027481,2]
[364864775,1749282663224,-10591.2508015,0.00027481,2]
[364864776,1749282663235,-38540.3739746,0.00027481,2]
[364864777,1749282663246,-494.09713034,0.00027486,17]
[364864778,1749282663255,-326.52672753,0.00027499,10]
[364864779,1749282663265,-10000.0,0.000275,5]
[364864780,1749282663275,-210.73,0.000275,2]
[364864781,1749282663285,-250000.0,0.000275,10]
[364864782,1749282663295,-532.42478678,0.000275,2]
[364864783,1749282663304,-5187.38,0.000275,2]
[364864784,1749282663315,-151.0,0.000275,7]
[364864785,1749282663325,-1221.810892,0.000275,7]
[364864786,1749282663335,-151.0,0.000275,7]
[364864787,1749282663345,-1221.810892,0.000275,7]
[364864788,1749282663354,-151.0,0.000275,7]
[364864789,1749282663364,-151.0,0.000275,7]
[364864790,1749282663375,-157.453017,0.000275,7]
[364864791,1749282663385,-151.0,0.000275,7]
[364864792,1749282663395,-166.231929,0.000275,7]
[364864793,1749282663404,-151.0,0.000275,7]
[364864794,1749282663414,-151.0,0.000275,7]
[364864795,1749282663425,-151.0,0.000275,7]
[364864796,1749282663434,-151.0,0.000275,7]
[364864797,1749282663444,-151.0,0.000275,7]
[364864798,1749282663454,-188.76991,0.000275,7]
[364864799,1749282663464,-314.743866,0.000275,7]
[364864800,1749282663474,-314.743866,0.000275,7]
[364864801,1749282663484,-151.0,0.000275,7]
[364864802,1749282663494,-1016.188715,0.000275,7]
[364864803,1749282663504,-1016.188715,0.000275,7]
[364864804,1749282663513,-163.913978,0.000275,7]
[364864805,1749282663523,-721.261256,0.000275,7]
[364864806,1749282663533,-163.913978,0.000275,7]
[364864807,1749282663542,-721.261256,0.000275,7]
[364864808,1749282663552,-224.860027,0.000275,7]
[364864809,1749282663562,-224.860027,0.000275,7]
[364864810,1749282663571,-151.0,0.000275,7]
[364864811,1749282663581,-327.769811,0.000275,7]
[364864812,1749282663591,-367.356215,0.000275,7]
[364864813,1749282663601,-327.769811,0.000275,7]
[364864814,1749282663611,-367.356215,0.000275,7]
[364864815,1749282663620,-429.802131,0.000275,7]
[364864816,1749282663630,-429.802131,0.000275,7]
[364864817,1749282663640,-1746.745216,0.000275,7]
[364864818,1749282663650,-1746.745216,0.000275,7]
[364864819,1749282663660,-151.0,0.000275,7]
[364864820,1749282663671,-155.208437,0.000275,7]
[364864821,1749282663682,-151.0,0.000275,7]
[364864822,1749282663692,-151.0,0.000275,7]
[364864823,1749282663702,-151.0,0.000275,7]
[364864824,1749282663712,-196.712187,0.000275,7]
[364864825,1749282663722,-196.712187,0.000275,7]
[364864826,1749282663732,-151.0,0.000275,7]
[364864827,1749282663741,-250.957019,0.000275,7]
[364864828,1749282663751,-161.295383,0.000275,7]
[364864829,1749282663761,-161.295383,0.000275,7]
[364864830,1749282663771,-10000.0,0.000275,7]
[364864831,1749282663781,-10000.0,0.000275,7]
[364864832,1749282663790,-10000.0,0.000275,7]
[364864833,1749282663800,-895.060117,0.000275,7]
[364864834,1749282663809,-895.060117,0.000275,7]
[364864835,1749282663819,-151.0,0.000275,7]
[364864836,1749282663828,-354.436695,0.000275,7]
[364864837,1749282663838,-354.4367,0.000275,7]
[364864838,1749282663847,-1213.994422,0.000275,7]
[364864839,1749282663857,-1213.994422,0.000275,7]
[364864840,1749282663870,-500.0,0.00027507,2]
[364864841,1749282663880,-500.0,0.00027534,2]
[364864842,1749282663891,-668.90846372,0.00027534,30]
[364864843,1749282663900,-224.860027,0.00027542,7]
[364864844,1749282663911,-224.860027,0.00027542,7]
[364864845,1749282663922,-1746.745216,0.00027542,7]
[364864846,1749282663932,-1746.745216,0.00027542,7]
[364864847,1749282663944,-151.0,0.00027542,7]
[364864848,1749282663954,-293.043261,0.00027542,7]
[364864849,1749282663964,-10644.7527517,0.00027542,2]
[364864850,1749282663974,-196.712187,0.00027542,7]
[364864851,1749282663984,-196.712187,0.00027542,7]
[364864852,1749282663994,-8979.0106752,0.00027542,2]
[364864853,1749282664004,-151.0,0.00027542,7]
[364864854,1749282664015,-9059.9812926,0.00027542,2]
[364864855,1749282664026,-10000.0,0.00027542,7]
[364864856,1749282664037,-10000.0,0.00027542,7]
[364864857,1749282664047,-10000.0,0.00027542,7]
[364864858,1749282664060,-895.060117,0.00027542,7]
[364864859,1749282664070,-895.060117,0.00027542,7]
[364864860,1749282664080,-151.0,0.00027542,7]
[364864861,1749282664090,-1213.994422,0.00027542,7]
[364864862,1749282664101,-1213.994422,0.00027542,7]
[364864863,1749282664111,-150.0,0.00027552,2]
[364864864,1749282664122,-150.0,0.00027552,2]
[364864865,1749282664132,-150.0,0.00027552,2]
[364864866,1749282664143,-150.0,0.00027552,2]
[364864867,1749282664153,-151.0,0.00027554,7]
[364864868,1749282664166,-151.0,0.00027554,7]
[364864869,1749282664177,-151.0,0.00027554,7]
[364864870,1749282664187,-1077.542394,0.00027554,7]
[364864871,1749282664198,-1077.542394,0.00027554,7]
[364864872,1749282664209,-151.0,0.00027554,7]
[364864873,1749282664220,-151.0,0.00027554,7]
[364864874,1749282664232,-151.0,0.00027554,7]
[364864875,1749282664242,-151.0,0.00027554,7]
[364864876,1749282664253,-270.465661,0.00027554,7]
[364864877,1749282664264,-314.743866,0.00027554,7]
[364864878,1749282664275,-314.743866,0.00027554,7]
[364864879,1749282664285,-1016.188715,0.00027554,7]
[364864880,1749282664295,-1016.188715,0.00027554,7]
[364864881,1749282664306,-163.913978,0.00027554,7]
[364864882,1749282664316,-721.261256,0.00027554,7]
[364864883,1749282664326,-163.913978,0.00027554,7]
[364864884,1749282664336,-721.261256,0.00027554,7]
[364864885,1749282664346,-162.947667,0.00027554,7]
[364864886,1749282664357,-327.769811,0.00027554,7]
[364864887,1749282664368,-327.769811,0.00027554,7]
[364864888,1749282664377,-429.802131,0.00027554,7]
[364864889,1749282664388,-429.802131,0.00027554,7]
[364864890,1749282664398,-204.807093,0.00027554,7]
[364864891,1749282664408,-161.295383,0.00027554,7]
[364864892,1749282664418,-161.295383,0.00027554,7]
[364864893,1749282664428,-151.0,0.00027561,2]
[364864894,1749282664438,-151.0,0.00027561,7]
[364864895,1749282664449,-151.0,0.00027561,7]
[364864896,1749282664458,-283.028488,0.00027561,7]
[364864897,1749282664469,-151.0,0.00027561,7]
[364864898,1749282664479,-283.028488,0.00027561,7]
[364864899,1749282664490,-1128.633104,0.00027561,7]
[364864900,1749282664499,-1128.633104,0.00027561,7]
[364864901,1749282664510,-1221.810892,0.00027561,7]
[364864902,1749282664520,-151.0,0.00027561,7]
[364864903,1749282664530,-1221.810892,0.00027561,7]
[364864904,1749282664540,-480.0,0.00027561,5]
[364864905,1749282664551,-151.0,0.00027561,7]
[364864906,1749282664560,-151.0,0.00027561,7]
[364864907,1749282664570,-151.0,0.00027561,7]
[364864908,1749282664580,-153.874886,0.00027561,7]
[364864909,1749282664590,-151.0,0.00027561,7]
[364864910,1749282664601,-151.0,0.00027561,7]
[364864911,1749282664610,-1106.284742,0.00027561,7]
[364864912,1749282664620,-1106.284742,0.00027561,7]
[364864913,1749282664630,-185.91318012,0.00027561,5]
[364864914,1749282664641,-524.31049664,0.00027561,5]
[364864915,1749282664650,-480.0,0.00027561,5]
[364864916,1749282664662,-480.0,0.00027561,5]
[364864917,1749282664672,-510.32669736,0.00027561,5]
[364864918,1749282664682,-480.0,0.00027561,5]
[364864919,1749282664693,-1715.887585,0.00027561,5]
[364864920,1749282664703,-500.72589636,0.00027561,5]
[364864921,1749282664713,-2102.121321,0.00027561,5]
[364864922,1749282664723,-480.0,0.00027561,5]
[364864923,1749282664733,-480.0,0.00027561,5]
[364864924,1749282664744,-609.44623584,0.00027561,5]
[364864925,1749282664754,-480.0,0.00027561,5]
[364864926,1749282664764,-480.0,0.00027561,5]
[364864927,1749282664775,-336.04612261,0.00027561,5]
[364864928,1749282664785,-480.0,0.00027561,5]
[364864929,1749282664795,-491.83914908,0.00027561,5]
[364864930,1749282664805,-480.0,0.00027561,5]
[364864931,1749282664815,-480.0,0.00027561,5]
[364864932,1749282664825,-159.748696,0.00027561,7]
[364864933,1749282664836,-480.0,0.00027561,5]
[364864934,1749282664846,-480.0,0.00027561,5]
[364864935,1749282664856,-480.0,0.00027561,5]
[364864936,1749282664870,-480.0,0.00027561,5]
[364864937,1749282664881,-480.0,0.00027561,5]
[364864938,1749282664891,-480.0,0.00027561,5]